bitfinex/quotes_BTCUSD_20241120
["timestamp","ask_amount","ask_price","bid_price","bid_amount"]
[1732136483306,0.001912,94299.0,94298.0,0.206046]
[1732136483778,0.001912,94299.0,94298.0,0.20910632]
[1732136484252,0.001912,94299.0,94298.0,0.20710632]
[1732136485912,0.0498,94315.0,94298.0,0.20710632]
[1732136485913,0.0756,94314.0,94310.0,0.208033]
[1732136486140,0.0498,94315.0,94310.0,0.39421912]
[1732136486349,0.0498,94315.0,94310.0,0.39315898]
[1732136491037,0.0002,94319.0,94310.0,0.39315898]
[1732136491377,0.0002,94319.0,94310.0,0.5252631]
[1732136491966,0.0002,94319.0,94310.0,0.56726265]
[1732136492291,0.0002,94319.0,94310.0,0.56526265]
[1732136492620,0.0002,94319.0,94310.0,0.56726265]
[1732136492822,0.0002,94319.0,94310.0,0.50279592]
[1732136496594,0.0002,94319.0,94317.0,0.003989]
[1732136496802,0.0002,94319.0,94317.0,0.33778837]
[1732136497005,0.0002,94319.0,94317.0,0.45878837]
[1732136497224,0.0017118,94326.0,94317.0,0.45878837]
[1732136497225,0.0017118,94326.0,94325.0,0.110005]
[1732136497439,0.082,94338.0,94325.0,0.110005]
[1732136497440,8e-07,94327.0,94326.0,0.4743225]
[1732136497649,8e-07,94327.0,94326.0,0.66143762]
[1732136499262,8e-07,94327.0,94326.0,0.53877837]
[1732136499467,8e-07,94327.0,94326.0,0.43777837]
[1732136500647,8e-07,94327.0,94326.0,0.47978618]
[1732136501538,8e-07,94327.0,94326.0,0.62344543]
[1732136501723,8e-07,94327.0,94326.0,0.50278618]
[1732136502127,8e-07,94327.0,94326.0,0.50702518]
[1732136502846,8e-07,94327.0,94326.0,0.62768443]
[1732136503060,8e-07,94327.0,94326.0,0.70538443]
[1732136503478,4e-07,94335.0,94334.0,0.209995]
[1732136503706,4e-07,94335.0,94334.0,0.34116986]
[1732136503913,4e-07,94335.0,94334.0,0.34011012]
[1732136506516,0.0477,94354.0,94353.0,0.32864325]
[1732136506517,0.0474004,94354.0,94353.0,0.32864325]
[1732136507180,0.0017114,94361.0,94358.0,0.209968]
[1732136508252,0.0017114,94361.0,94358.0,0.25340561]
[1732136508662,0.0017114,94361.0,94358.0,0.35946112]
[1732136509375,0.0017114,94361.0,94358.0,0.38246112]
[1732136512218,0.0017114,94361.0,94358.0,0.252346]
[1732136512449,0.1297094,94359.0,94358.0,0.252346]
[1732136513419,0.1297094,94359.0,94358.0,0.250346]
[1732136513695,0.1297094,94359.0,94358.0,0.252346]
[1732136513895,0.1297094,94359.0,94358.0,0.250346]
[1732136514069,0.1297094,94359.0,94358.0,0.252346]
[1732136514830,0.1297094,94359.0,94358.0,0.248357]
[1732136515065,0.1297094,94359.0,94358.0,0.205979]
[1732136515283,0.1297094,94359.0,94358.0,0.105979]
[1732136515533,0.009947,94354.0,94333.0,0.001989]
[1732136515783,0.009947,94354.0,94310.0,0.0806]
[1732136515784,0.134947,94350.0,94349.0,0.105989]
[1732136516032,0.0751,94343.0,94342.0,0.105997]
[1732136518881,0.055547,94337.0,94336.0,0.106003]
[1732136519088,0.132347,94337.0,94336.0,0.106003]
[1732136519442,0.1224,94337.0,94336.0,0.106003]
[1732136519642,0.1224,94337.0,94336.0,0.22666225]
[1732136520868,0.1224,94337.0,94336.0,0.106003]
[1732136521256,0.1224,94337.0,94336.0,0.22666225]
[1732136521985,0.1224,94337.0,94336.0,0.106003]
[1732136526808,0.1224,94337.0,94334.0,0.1068597]
[1732136526809,0.1237,94336.0,94335.0,0.106005]
[1732136526970,0.131711,94336.0,94335.0,0.106005]
[1732136530015,0.017958,94335.0,94334.0,0.0008547]
[1732136530237,0.35647812,94335.0,94334.0,0.0008547]
[1732136530462,0.25047312,94335.0,94334.0,0.0008547]
[1732136531093,0.35647812,94335.0,94334.0,0.0008547]
[1732136531496,0.25047312,94335.0,94334.0,0.1068607]
[1732136533130,0.008011,94329.0,94328.0,0.106012]
[1732136535371,0.1254,94335.0,94334.0,0.106006]
[1732136536555,0.1254,94335.0,94334.0,0.1068607]
[1732136539021,0.26398516,94335.0,94334.0,0.0008547]
[1732136539372,0.36999016,94335.0,94334.0,0.0008547]
[1732136539559,0.26398516,94335.0,94334.0,0.0008547]
[1732136539770,0.36999016,94335.0,94334.0,0.0008547]
[1732136540301,0.009947,94317.0,94308.0,0.106035]
[1732136540503,0.145058,94317.0,94316.0,0.106026]
[1732136540906,0.145058,94317.0,94313.0,0.106029]
[1732136540907,0.017958,94314.0,94313.0,0.106029]
[1732136541122,0.008011,94313.0,94299.0,0.000855]
[1732136541327,0.017958,94310.0,94299.0,0.000855]
[1732136541577,0.017958,94310.0,94309.0,0.106034]
[1732136545779,0.04317531,94310.0,94309.0,0.106034]
[1732136546092,0.017958,94310.0,94309.0,0.106034]
[1732136546482,0.017958,94310.0,94299.0,0.000855]
[1732136546483,0.140958,94300.0,94299.0,0.1069]
[1732136555675,0.140958,94300.0,94299.0,0.000855]
[1732136555879,0.140958,94300.0,94299.0,0.1069]
[1732136558945,0.140958,94300.0,94299.0,0.000855]
[1732136559323,0.140958,94300.0,94299.0,0.1069]
[1732136565544,0.063658,94300.0,94299.0,0.1069]
[1732136571947,0.017958,94306.0,94305.0,0.106038]
[1732136572371,0.009947,94306.0,94305.0,0.106038]
[1732136572570,0.017958,94306.0,94305.0,0.106038]
[1732136572737,0.008011,94304.0,94300.0,0.106044]
[1732136572933,0.017958,94301.0,94300.0,0.106044]
[1732136573393,0.12507312,94301.0,94299.0,0.000855]
[1732136573696,0.11512612,94300.0,94299.0,0.000855]
[1732136574156,0.11512612,94300.0,94299.0,0.1069]
[1732136574757,0.12507312,94300.0,94299.0,0.1069]
[1732136575184,0.017958,94300.0,94299.0,0.1069]
[1732136577425,0.28013262,94300.0,94299.0,0.000855]
[1732136577626,0.36071712,94300.0,94299.0,0.000855]
[1732136578300,0.49137637,94300.0,94299.0,0.000855]
[1732136580557,0.37071712,94300.0,94299.0,0.000855]
[1732136580892,0.36071712,94300.0,94299.0,0.000855]
[1732136583833,0.25467312,94300.0,94299.0,0.000855]
[1732136584038,0.25467312,94300.0,94299.0,0.1069]
[1732136584267,0.017958,94300.0,94299.0,0.1069]
[1732136584879,0.007947,94300.0,94299.0,0.1069]
[1732136585081,0.015958,94300.0,94299.0,0.1069]
[1732136586096,0.008011,94300.0,94299.0,0.1069]
[1732136586506,0.007947,94306.0,94305.0,0.106038]
[1732136586933,0.007947,94311.0,94305.0,0.106038]
[1732136587303,0.007947,94311.0,94310.0,0.106033]
[1732136587304,0.015958,94311.0,94310.0,0.106033]
[1732136587421,0.12307312,94311.0,94310.0,0.106033]
[1732136594144,0.007947,94312.0,94311.0,0.106032]
[1732136594344,0.015958,94312.0,94311.0,0.106032]
[1732136594502,0.008011,94312.0,94311.0,0.106032]
[1732136594702,0.015958,94312.0,94311.0,0.106032]
[1732136597527,0.015958,94313.0,94312.0,0.106031]
[1732136599963,0.015958,94313.0,94311.0,0.106032]
[1732136600159,0.008011,94312.0,94311.0,0.106032]
[1732136600484,0.015958,94312.0,94311.0,0.106032]
[1732136600718,0.007947,94312.0,94311.0,0.106032]
[1732136600849,0.015958,94312.0,94311.0,0.106032]
[1732136601083,0.008011,94312.0,94311.0,0.106032]
[1732136601447,0.015958,94312.0,94311.0,0.106032]
[1732136602609,0.008011,94314.0,94311.0,0.12065925]
[1732136602770,0.007947,94322.0,94321.0,0.10602]
[1732136603269,0.008011,94322.0,94321.0,0.10602]
[1732136604523,0.016958,94322.0,94321.0,0.10602]
[1732136605596,0.015958,94319.0,94318.0,0.106023]
[1732136605758,0.17117312,94319.0,94318.0,0.106023]
[1732136607751,0.17117312,94319.0,94309.0,0.106034]
[1732136607752,0.008011,94310.0,94309.0,0.106034]
[1732136607971,0.015958,94310.0,94309.0,0.106034]
[1732136608378,0.093658,94310.0,94309.0,0.106034]
[1732136615437,0.093658,94310.0,94303.0,0.106041]
[1732136615438,0.008011,94308.0,94303.0,0.106041]
[1732136616050,0.008011,94308.0,94307.0,0.106036]
[1732136616452,0.015958,94308.0,94307.0,0.106036]
[1732136618315,0.008011,94308.0,94307.0,0.106036]
[1732136618516,0.015958,94308.0,94307.0,0.106036]
[1732136619659,0.008011,94308.0,94307.0,0.106036]
[1732136620060,0.008011,94309.0,94308.0,0.106035]
[1732136620469,0.0481,94319.0,94308.0,0.106035]
[1732136620470,0.007947,94315.0,94308.0,0.106035]
[1732136620741,0.008011,94309.0,94308.0,0.106035]
[1732136621486,0.008011,94309.0,94306.0,0.10909627]
[1732136621487,0.0481,94319.0,94318.0,0.106024]
[1732136623007,0.056111,94319.0,94318.0,0.106024]
[1732136624287,0.001712,94322.0,94321.0,0.10602]
[1732136624487,0.009723,94322.0,94321.0,0.10602]
[1732136624690,0.01767,94322.0,94321.0,0.10602]
[1732136625725,0.01767,94322.0,94311.0,0.04303647]
[1732136625726,0.015958,94313.0,94300.0,0.000856]
[1732136625966,0.008011,94309.0,94308.0,0.106035]
[1732136626458,0.015958,94309.0,94308.0,0.106035]
[1732136626613,0.008011,94309.0,94308.0,0.106035]
[1732136626962,0.008011,94310.0,94309.0,0.106034]
[1732136627433,0.008011,94313.0,94310.0,0.106033]
[1732136627749,0.008011,94313.0,94312.0,0.22669025]
[1732136627950,0.056923,94322.0,94319.0,0.106023]
[1732136628218,0.008011,94320.0,94319.0,0.106023]
[1732136628414,0.056923,94322.0,94321.0,0.10602]
[1732136629201,0.048912,94322.0,94321.0,0.10602]
[1732136629380,0.056923,94322.0,94321.0,0.10602]
[1732136634823,0.06487,94322.0,94321.0,0.10602]
[1732136636459,0.015958,94318.0,94317.0,0.106024]
[1732136636687,0.015958,94310.0,94309.0,0.0008559]
[1732136636919,0.12958892,94310.0,94309.0,0.0008559]
[1732136637755,0.28482192,94310.0,94309.0,0.0008559]
[1732136637977,0.36002192,94310.0,94309.0,0.0008559]
[1732136638184,0.4551602,94310.0,94309.0,0.0008559]
[1732136638560,0.4486444,94310.0,94309.0,0.0008559]
[1732136639599,0.35350612,94310.0,94309.0,0.0008559]
[1732136641793,0.64471047,94310.0,94309.0,0.0008559]
[1732136641989,0.90068053,94310.0,94309.0,0.0008559]
[1732136642624,1.13839719,94310.0,94309.0,0.0008559]
[1732136642827,1.24745974,94310.0,94309.0,0.0008559]
[1732136643048,1.00974308,94310.0,94309.0,0.0008559]
[1732136643260,1.19985467,94310.0,94309.0,0.0008559]
[1732136643474,1.01874308,94310.0,94309.0,0.0008559]
[1732136644161,0.90968053,94310.0,94309.0,0.0008559]
[1732136644354,0.78890163,94310.0,94309.0,0.0008559]
[1732136644557,0.64582485,94310.0,94309.0,0.0008559]
[1732136644758,1.1839232,94310.0,94309.0,0.0008559]
[1732136644962,1.04138502,94310.0,94309.0,0.0008559]
[1732136645157,1.15044757,94310.0,94309.0,0.0008559]
[1732136645410,1.29295955,94310.0,94309.0,0.0008559]
[1732136645527,1.30195955,94310.0,94309.0,0.0008559]
[1732136645732,1.15944757,94310.0,94309.0,0.0008559]
[1732136646433,1.16115937,94310.0,94309.0,0.0008559]
[1732136646578,1.30367135,94310.0,94309.0,0.0008559]
[1732136646783,1.16115937,94310.0,94309.0,0.0008559]
[1732136646983,1.25614839,94310.0,94309.0,0.0008559]
[1732136647619,1.16115937,94310.0,94309.0,0.0008559]
[1732136647762,1.25614839,94310.0,94309.0,0.0008559]
[1732136647964,1.14708584,94310.0,94309.0,0.0008559]
[1732136648206,1.02627935,94310.0,94309.0,0.0008559]
[1732136648410,0.93131792,94310.0,94309.0,0.0008559]
[1732136648988,0.90330692,94310.0,94309.0,0.0008559]
[1732136649195,0.79727392,94310.0,94309.0,0.0008559]
[1732136649559,0.72213792,94310.0,94309.0,0.1068899]
[1732136649842,0.5737698,94310.0,94309.0,0.1068899]
[1732136650370,0.68088492,94310.0,94309.0,0.0008559]
[1732136650778,0.26803186,94310.0,94309.0,0.0008559]
[1732136651000,0.24881792,94310.0,94309.0,0.0008559]
[1732136651351,0.23981792,94310.0,94309.0,0.0008559]
[1732136651908,0.24881792,94310.0,94309.0,0.0008559]
[1732136652090,0.23081792,94310.0,94309.0,0.0008559]
[1732136652328,0.12478492,94310.0,94309.0,0.0008559]
[1732136654322,0.0176698,94310.0,94309.0,0.1068899]
[1732136656452,0.0096588,94310.0,94309.0,0.1068899]
[1732136656660,0.0176698,94310.0,94309.0,0.1068899]
[1732136656833,0.0096588,94310.0,94309.0,0.1068899]
[1732136657048,0.0176698,94310.0,94309.0,0.1068899]
[1732136662015,0.31532199,94310.0,94309.0,0.0008559]
[1732136662221,0.53640089,94310.0,94309.0,0.0008559]
[1732136662624,0.75433532,94310.0,94309.0,0.0008559]
[1732136662822,1.19750089,94310.0,94309.0,0.0008559]
[1732136663022,1.19245536,94310.0,94309.0,0.0008559]
[1732136663657,1.20145536,94310.0,94309.0,0.0008559]
[1732136664277,1.14852807,94310.0,94309.0,0.0008559]
[1732136665143,1.113024,94310.0,94309.0,0.0008559]
[1732136666025,1.122024,94310.0,94309.0,0.0008559]
[1732136666224,1.113024,94310.0,94309.0,0.0008559]
[1732136666420,1.104024,94310.0,94309.0,0.0008559]
[1732136666625,1.113024,94310.0,94309.0,0.0008559]
[1732136666827,1.122024,94310.0,94309.0,0.0008559]
[1732136667024,1.113024,94310.0,94309.0,0.0008559]
[1732136667319,1.122024,94310.0,94309.0,0.0008559]
[1732136667636,1.23108655,94310.0,94309.0,0.0008559]
[1732136667884,1.33108655,94310.0,94309.0,0.0008559]
[1732136668057,1.4260133,94310.0,94309.0,0.0008559]
[1732136668262,1.45250373,94310.0,94309.0,0.0008559]
[1732136668466,1.48130913,94310.0,94309.0,0.0008559]
[1732136668665,1.46330913,94310.0,94309.0,0.0008559]
[1732136668867,1.37938238,94310.0,94309.0,0.0008559]
[1732136669209,1.37938238,94310.0,94304.0,0.0008559]
[1732136669210,0.394596,94305.0,94304.0,0.0008559]
[1732136669522,0.394596,94305.0,94249.0,0.002053]
[1732136669523,0.122019,94285.0,94265.0,0.106083]
[1732136669690,0.48951302,94285.0,94265.0,0.106083]
[1732136669890,0.48951302,94285.0,94267.0,0.10608]
[1732136670218,0.48951302,94285.0,94268.0,0.106079]
[1732136670450,0.48951302,94285.0,94266.0,0.106082]
[1732136670669,0.48951302,94285.0,94262.0,0.106086]
[1732136670881,0.48951302,94285.0,94269.0,0.106078]
[1732136671100,0.48951302,94285.0,94268.0,0.106079]
[1732136671474,0.48951302,94285.0,94269.0,0.106078]
[1732136671879,0.48951302,94285.0,94261.0,0.106087]
[1732136671880,0.52251302,94285.0,94261.0,0.106087]
[1732136672147,0.5829962,94285.0,94263.0,0.106085]
[1732136672369,0.5829962,94285.0,94260.0,0.0008554]
[1732136672370,0.122046,94261.0,94260.0,0.0008554]
[1732136672624,0.23916112,94261.0,94260.0,0.0008554]
[1732136674493,0.13307312,94261.0,94260.0,0.0008554]
[1732136674736,0.23916112,94261.0,94260.0,0.0008554]
[1732136675568,0.28851536,94261.0,94260.0,0.0008554]
[1732136677762,0.44881536,94261.0,94260.0,0.0008554]
[1732136679918,0.46575447,94261.0,94260.0,0.0005904]
[1732136680193,0.45675447,94261.0,94260.0,0.0005904]
[1732136680780,0.44775447,94261.0,94260.0,0.0005904]
[1732136681168,0.45675447,94261.0,94260.0,0.0005904]
[1732136682246,0.46575447,94261.0,94260.0,0.0005904]
[1732136682668,0.45675447,94261.0,94260.0,0.0005904]
[1732136683165,0.46575447,94261.0,94260.0,0.0005904]
[1732136685053,0.01489711,94243.0,94242.0,0.106109]
[1732136685965,0.008011,94238.0,94233.0,0.106119]
[1732136686193,0.008011,94238.0,94237.0,0.106115]
[1732136687118,0.008011,94238.0,94237.0,0.187415]
[1732136689792,0.008011,94238.0,94237.0,0.29353]
[1732136691025,0.008011,94238.0,94237.0,0.187415]
[1732136691271,0.008011,94238.0,94237.0,0.24253994]
[1732136691484,0.008011,94238.0,94237.0,0.3475939]
[1732136691966,0.008011,94238.0,94237.0,0.34845]
[1732136692433,0.008011,94238.0,94237.0,0.2276711]
[1732136692647,0.008011,94238.0,94237.0,0.1882711]
[1732136693204,0.008011,94238.0,94237.0,0.0821561]
[1732136693549,0.008011,94238.0,94237.0,0.1882711]
[1732136695055,0.01489711,94245.0,94244.0,0.106107]
[1732136696746,0.008011,94245.0,94244.0,0.106107]
[1732136697699,0.01489711,94250.0,94249.0,0.106101]
[1732136698334,0.01489711,94250.0,94237.0,0.1882711]
[1732136698335,0.01489711,94238.0,94237.0,0.0008561]
[1732136698537,0.16801223,94238.0,94237.0,0.0008561]
[1732136699654,0.16801223,94238.0,94237.0,0.1069711]
[1732136700636,0.16801223,94238.0,94237.0,0.0008561]
[1732136700637,0.43163784,94238.0,94237.0,0.0008561]
[1732136700870,0.43134578,94238.0,94237.0,0.0008561]
[1732136701130,0.37063417,94238.0,94237.0,0.0008561]
[1732136704486,0.37063417,94238.0,94237.0,0.0008561]
[1732136706227,0.25452017,94238.0,94237.0,0.0008561]
[1732136706475,0.37063417,94238.0,94237.0,0.0008561]
[1732136708235,0.49363417,94238.0,94237.0,0.0008561]
[1732136708498,0.49363417,94238.0,94231.0,0.0008556]
[1732136708499,0.64072605,94232.0,94231.0,0.0008556]
[1732136708751,1.11722007,94232.0,94231.0,0.0008556]
[1732136709783,1.65532007,94232.0,94231.0,0.0008556]
[1732136710562,1.94682007,94232.0,94231.0,0.0008556]
[1732136711096,1.95582007,94232.0,94231.0,0.0008556]
[1732136711348,2.15968123,94232.0,94231.0,0.0008556]
[1732136711586,2.06488262,94232.0,94231.0,0.0008556]
[1732136711839,2.06488262,94232.0,94212.0,0.000856]
[1732136711840,0.38882395,94215.0,94212.0,0.000856]
[1732136712079,0.49593907,94215.0,94212.0,0.000856]
[1732136714576,0.5394654,94215.0,94212.0,0.000856]
[1732136715062,0.2220465,94215.0,94212.0,0.000856]
[1732136715260,0.13172017,94215.0,94214.0,0.1069957]
[1732136715611,0.01460505,94215.0,94214.0,0.1069957]
[1732136717332,0.12172017,94215.0,94214.0,0.0008547]
[1732136717535,0.13489219,94215.0,94214.0,0.0008547]
[1732136717728,0.24103219,94215.0,94214.0,0.0008547]
[1732136718309,0.22786017,94215.0,94214.0,0.0008547]
[1732136718553,0.30516017,94215.0,94214.0,0.0008547]
[1732136718926,0.61783104,94215.0,94214.0,0.0008547]
[1732136720519,0.61883104,94215.0,94214.0,0.0008547]
[1732136721246,0.58883104,94215.0,94214.0,0.0008547]
[1732136722135,0.58783104,94215.0,94214.0,0.0008547]
[1732136722995,1.16954636,94215.0,94214.0,0.0008547]
[1732136725120,1.27860891,94215.0,94214.0,0.0008547]
[1732136725902,0.74050891,94215.0,94214.0,0.0008547]
[1732136727866,0.62144636,94215.0,94214.0,0.0008547]
[1732136728874,1.15954636,94215.0,94214.0,0.0008547]
[1732136730426,1.26954636,94215.0,94214.0,0.0008547]
[1732136730569,1.31904636,94215.0,94214.0,0.0008547]
[1732136731903,1.32804636,94215.0,94214.0,0.0008547]
[1732136732130,1.38892959,94215.0,94214.0,0.0008547]
[1732136732369,1.39792959,94215.0,94214.0,0.0008547]
[1732136732592,1.38892959,94215.0,94214.0,0.0008547]
[1732136732772,1.41973499,94215.0,94214.0,0.0008547]
[1732136732971,1.41973499,94215.0,94212.0,0.000856]
[1732136732972,0.106166,94192.0,94191.0,0.0002]
[1732136733206,0.86706002,94192.0,94191.0,0.0002]
[1732136733373,0.106188,94172.0,94151.0,0.0002]
[1732136733654,0.649211,94152.0,94151.0,0.0002]
[1732136733848,1.59883795,94152.0,94151.0,0.0002]
[1732136734073,1.52927589,94152.0,94151.0,0.0002]
[1732136734251,1.30228599,94152.0,94151.0,0.0002]
[1732136734471,0.77928599,94152.0,94151.0,0.0002]
[1732136735226,0.10711512,94152.0,94151.0,0.0002]
[1732136735566,0.34503763,94152.0,94151.0,0.0002]
[1732136735768,0.34603763,94152.0,94151.0,0.0002]
[1732136736008,0.41782869,94152.0,94151.0,0.0002]
[1732136736199,0.3821873,94152.0,94151.0,0.0002]
[1732136736414,0.34603763,94152.0,94151.0,0.0002]
[1732136737427,0.34603763,94152.0,94142.0,0.0008562]
[1732136737428,0.34503763,94152.0,94142.0,0.0008562]
[1732136737648,0.01,94143.0,94142.0,0.0008562]
[1732136738002,0.01,94143.0,94098.0,0.0777]
[1732136738003,0.01,94120.0,94098.0,0.0777]
[1732136738114,0.01,94120.0,94101.0,0.04285139]
[1732136738115,0.39227575,94120.0,94101.0,0.04285139]
[1732136738589,0.5719022,94120.0,94119.0,0.00056562]
[1732136738781,0.6819022,94120.0,94119.0,0.00056562]
[1732136738974,0.47498158,94120.0,94119.0,0.00056562]
[1732136739395,0.41286276,94120.0,94119.0,0.00056562]
[1732136739704,0.50717165,94120.0,94119.0,0.00056562]
[1732136739921,0.53917165,94120.0,94119.0,0.00056562]
[1732136740159,0.55392531,94120.0,94119.0,0.00056562]
[1732136740379,1.46683771,94120.0,94119.0,0.00056562]
[1732136740580,1.46683771,94120.0,94082.0,0.0777]
[1732136740581,0.10627,94100.0,94082.0,0.0777]
[1732136740790,0.1207789,94092.0,94076.0,0.14954236]
[1732136740942,0.1207789,94092.0,94076.0,0.04324636]
[1732136741256,0.1207789,94092.0,94071.0,0.0002]
[1732136741418,0.2270569,94092.0,94073.0,0.04235806]
[1732136741618,0.1207789,94092.0,94073.0,0.04235806]
[1732136742153,0.36981341,94092.0,94073.0,0.04235806]
[1732136742347,0.36981341,94092.0,94071.0,0.0002]
[1732136742671,0.33417202,94092.0,94071.0,0.0002]
[1732136742870,0.22789402,94092.0,94071.0,0.0002]
[1732136743115,0.33417202,94092.0,94071.0,0.0002]
[1732136744663,0.1207789,94074.0,94071.0,0.0002]
[1732136744995,0.1207789,94080.0,94072.0,0.0022984]
[1732136745444,0.2270719,94080.0,94072.0,0.0022984]
[1732136745613,0.2270719,94080.0,94071.0,0.0002]
[1732136745614,0.1207789,94080.0,94071.0,0.0002]
[1732136746238,0.1207789,94080.0,94072.0,0.00221401]
[1732136746436,0.36669879,94080.0,94072.0,0.00221401]
[1732136746643,0.2370709,94080.0,94071.0,0.0002]
[1732136746815,0.1207789,94073.0,94071.0,0.0002]
[1732136747441,0.1207789,94073.0,94067.0,0.04416053]
[1732136747671,0.1207789,94073.0,94064.0,0.106309]
[1732136747867,0.1207789,94073.0,94068.0,0.00221139]
[1732136748091,0.1207789,94073.0,94065.0,0.106309]
[1732136748313,0.1207789,94073.0,94069.0,0.00221051]
[1732136748512,0.1207789,94073.0,94070.0,0.00220964]
[1732136748742,0.1207789,94073.0,94060.0,0.106315]
[1732136748930,0.1207789,94073.0,94059.0,0.18503385]
[1732136749104,0.1207789,94073.0,94065.0,0.106309]
[1732136749487,0.1207789,94073.0,94066.0,0.00212815]
[1732136749689,0.00504,94089.0,94075.0,0.002]
[1732136750018,0.00504,94094.0,94076.0,0.00214663]
[1732136750255,0.00504,94094.0,94080.0,0.106292]
[1732136750490,0.00504,94094.0,94072.0,0.00496]
[1732136750673,0.00504,94094.0,94081.0,0.00197183]
[1732136750893,0.00504,94094.0,94078.0,0.106293]
[1732136751129,0.1207789,94088.0,94078.0,0.106293]
[1732136751335,0.1207789,94088.0,94072.0,0.00496]
[1732136751336,0.1207789,94088.0,94076.0,0.106296]
[1732136751530,0.1207789,94088.0,94078.0,0.106293]
[1732136751758,0.1207789,94088.0,94079.0,0.00197334]
[1732136751874,0.1207789,94088.0,94078.0,0.106294]
[1732136752074,0.1207789,94088.0,94079.0,0.0019681]
[1732136752720,0.1207789,94082.0,94079.0,0.0019681]
[1732136752924,0.1207789,94082.0,94070.0,0.000856]
[1732136752925,0.00504,94081.0,94070.0,0.000856]
[1732136753289,0.1258189,94073.0,94070.0,0.000856]
[1732136753444,0.106302,94071.0,94070.0,0.000856]
[1732136753652,0.111342,94071.0,94070.0,0.000856]
[1732136753859,0.00504,94071.0,94070.0,0.000856]
[1732136754025,0.21845712,94071.0,94070.0,0.000856]
[1732136754225,0.22045712,94071.0,94070.0,0.000856]
[1732136755512,0.26660679,94071.0,94070.0,0.000856]
[1732136755671,0.23045712,94071.0,94070.0,0.000856]
[1732136755872,0.23045712,94071.0,94070.0,0.001856]
[1732136756338,0.27396448,94071.0,94070.0,0.001856]
[1732136756541,0.27396448,94071.0,94070.0,0.000856]
[1732136756746,0.27396448,94071.0,94070.0,0.001856]
[1732136758474,0.37396448,94071.0,94070.0,0.001856]
[1732136760437,0.37396448,94071.0,94053.0,0.0002]
[1732136760438,0.106309,94065.0,94053.0,0.106522]
[1732136760678,0.106309,94065.0,94057.0,0.00182643]
[1732136760931,0.1227789,94067.0,94053.0,0.0002]
[1732136761173,0.00504,94059.0,94053.0,0.0002]
[1732136761420,0.00504,94059.0,94057.0,0.00182118]
[1732136762390,0.00504,94074.0,94057.0,0.00182118]
[1732136762634,0.00504,94073.0,94057.0,0.00182118]
[1732136762869,0.00504,94073.0,94064.0,0.106309]
[1732136763093,0.00504,94073.0,94065.0,0.00184772]
[1732136763333,0.00504,94073.0,94066.0,0.106308]
[1732136763561,0.00504,94073.0,94067.0,0.00184597]
[1732136764053,0.2270739,94078.0,94072.0,0.1063]
[1732136764054,0.00504,94078.0,94072.0,0.1063]
[1732136764304,0.0017146,94074.0,94073.0,0.1063]
[1732136764792,0.0017146,94074.0,94073.0,0.00177059]
[1732136765060,0.0017146,94074.0,94071.0,0.106302]
[1732136765346,0.0017146,94074.0,94073.0,0.10807059]
[1732136765598,0.0017146,94074.0,94073.0,0.1063]
[1732136765847,0.0017146,94074.0,94073.0,0.10807059]
[1732136766095,0.0017146,94074.0,94073.0,0.10913352]
[1732136768985,0.0017146,94074.0,94073.0,0.10807059]
[1732136769479,0.0017146,94074.0,94073.0,0.10913346]
[1732136770711,0.0017146,94074.0,94073.0,0.10807059]
[1732136778392,0.0017146,94074.0,94073.0,0.41100852]
[1732136778585,0.0017146,94074.0,94073.0,0.40994571]
[1732136779253,0.0017146,94074.0,94073.0,0.43294571]
[1732136779670,0.00504,94112.0,94111.0,0.106257]
[1732136779915,0.1354,94118.0,94091.0,0.106279]
[1732136779916,0.09410454,94117.0,94095.0,0.00496]
[1732136780117,0.14619681,94120.0,94091.0,0.106279]
[1732136780118,0.09410454,94120.0,94117.0,0.10625]
[1732136780327,0.09410454,94120.0,94111.0,0.00170934]
[1732136780328,0.00504,94124.0,94123.0,0.106243]
[1732136780730,0.00504,94124.0,94123.0,0.10793952]
[1732136780932,0.00504,94124.0,94123.0,0.00169652]
[1732136781082,0.111282,94124.0,94123.0,0.00169652]
[1732136781287,0.111282,94124.0,94118.0,0.106249]
[1732136781288,0.108244,94123.0,94118.0,0.106249]
[1732136781604,0.09686827,94123.0,94118.0,0.106249]
[1732136781865,0.09686827,94123.0,94119.0,0.00169914]
[1732136781866,0.2320659,94120.0,94119.0,0.00169914]
[1732136782093,0.2320659,94120.0,94114.0,0.106253]
[1732136782094,0.002,94115.0,94114.0,0.106253]
[1732136782354,0.002,94118.0,94114.0,0.106253]
[1732136782592,0.09486827,94117.0,94116.0,0.106251]
[1732136782818,0.09486827,94119.0,94118.0,0.106249]
[1732136783111,0.09990827,94121.0,94118.0,0.106249]
[1732136783340,0.09486827,94125.0,94122.0,0.106245]
[1732136783560,0.14254056,94128.0,94127.0,0.106239]
[1732136784020,0.14253865,94132.0,94128.0,0.106238]
[1732136784235,0.09502084,94133.0,94131.0,0.106234]
[1732136784457,0.09502084,94134.0,94133.0,0.106232]
[1732136784675,0.09502084,94135.0,94134.0,0.106231]
[1732136785119,0.09502084,94135.0,94134.0,0.10791406]
[1732136785351,0.002,94136.0,94135.0,0.10623]
[1732136785593,0.002,94136.0,94135.0,0.1079026]
[1732136785797,0.18973654,94146.0,94135.0,0.1079026]
[1732136785798,0.09502084,94146.0,94135.0,0.1079026]
[1732136786013,0.09502084,94149.0,94145.0,0.106219]
[1732136786234,0.09502084,94149.0,94129.0,0.00496]
[1732136786235,0.00504,94150.0,94149.0,0.106214]
[1732136786668,0.00504,94150.0,94149.0,0.10800884]
[1732136788313,0.0487,94158.0,94152.0,0.106211]
[1732136788314,0.00504,94153.0,94152.0,0.106211]
[1732136788778,0.00504,94153.0,94132.0,0.00496]
[1732136788779,0.00704,94153.0,94132.0,0.00496]
[1732136788998,0.00704,94153.0,94146.0,0.106217]
[1732136789249,0.00704,94153.0,94151.0,0.106211]
[1732136789543,0.00504,94153.0,94152.0,0.106211]
[1732136789761,0.00504,94153.0,94152.0,0.10800584]
[1732136790445,0.00504,94153.0,94152.0,0.00179484]
[1732136790908,0.002,94152.0,94147.0,0.106216]
[1732136791127,0.002,94152.0,94149.0,0.106214]
[1732136791353,0.002,94152.0,94150.0,0.106212]
[1732136791584,0.002,94152.0,94151.0,0.106212]
[1732136791839,0.00704,94153.0,94151.0,0.00176016]
[1732136792076,0.00704,94153.0,94152.0,0.106211]